[Event "121st Swiss Championship 2022"]
[Site "Samnaun-Compatsch"]
[Date "2022.07.10"]
[Round "9.6"]
[White "Lou, Vincent"]
[Black "Angst, Oliver"]
[Result "1/2-1/2"]
[ECO "D45"]
[WhiteElo "2200"]
[BlackElo "2203"]
[Annotator "RC"]
[PlyCount "144"]
[EventDate "2022.06.28"]
[EventType "swiss"]
[EventCountry "SUI"]
[SourceTitle "playchess.com"]
[Source "ChessBase"]
[SourceQuality "1"]
[TimeControl "40/5400+30:1800+30"]

1. d4 {[%emt 0:00:03]} d5 {[%emt 0:10:10]} 2. c4 {[%emt 0:00:06]} c6 {[%emt 0:00:04]} 3. Nc3 {[%emt 0:00:05]} Nf6 {[%emt 0:00:04]} 4. Nf3 {[%emt 0:00:06]} e6 {[%emt 0:00:03]} 5. e3 {[%emt 0:00:16]} Nbd7 {[%emt 0:00:22]} 6. Qc2 {[%emt 0:00:11]} Bd6 {[%emt 0:00:04]} 7. b3 {[%emt 0:00:04]} O-O {[%emt 0:00:07]} 8. Be2 {[%emt 0:00:04]} b6 {[%emt 0:00:23]} 9. O-O {[%emt 0:00:25]} Bb7 {[%emt 0:00:41]} 10. Bb2 {[%emt 0:00:08]} Qe7 {[%emt 0:00:03]} 11. Rfd1 {[%emt 0:00:08]} Rfd8 {[%emt 0:00:06]} 12. Rac1 {[%emt 0:00:13]} Rac8 {[%emt 0:00:05]} 13. g3 {[%emt 0:00:07]} c5 {[%emt 0:09:23]} 14. cxd5 {[%emt 0:01:10]} Nxd5 {[%emt 0:04:22]} 15. Nxd5 {[%emt 0:03:30]} exd5 {[%emt 0:03:51]} 16. Qb1 {[%emt 0:03:42]} c4 {[%emt 0:04:01]} 17. bxc4 {[%emt 0:04:25]} dxc4 {[%emt 0:01:00]} 18. Nd2 {[%emt 0:09:49]} b5 {[%emt 0:03:53]} 19. Ba1 {[%emt 0:25:18]} Bb4 {[%emt 0:07:14]} 20. Bc3 {[%emt 0:07:15]} Ba3 {[%emt 0:01:30]} 21. Bb2 {[%emt 0:00:55]} Bd6 {[%emt 0:01:35]} 22. Ba1 {[%emt 0:00:43]} Bb4 {[%emt 0:03:25]} 23. Bc3 {[%emt 0:00:25]} Ba3 {[%emt 0:02:36]} 24. Bb2 {[%emt 0:00:58]} Bxb2 {[%emt 0:18:28]} 25. Qxb2 {[%emt 0:00:31]} Ba6 {[%emt 0:00:03]} 26. Bf1 {[%emt 0:07:33]} Nb6 {[%emt 0:02:04]} 27. Qb1 {[%emt 0:03:41]} Na4 {[%emt 0:01:25]} 28. Ne4 {[%emt 0:04:40]} Bb7 {[%emt 0:05:40]} 29. Nc3 {[%emt 0:03:41]} Nxc3 {[%emt 0:02:02]} 30. Rxc3 {[%emt 0:00:15]} Ba8 {[%emt 0:08:18]} 31. Bg2 {[%emt 0:02:44]} Bxg2 {[%emt 0:00:38]} 32. Kxg2 {[%emt 0:00:03]} b4 {[%emt 0:01:08]} 33. Rcc1 {[%emt 0:00:40]} a5 {[%emt 0:04:38]} 34. e4 {[%emt 0:01:47]} a4 {[%emt 0:01:41]} 35. d5 {[%emt 0:02:35]} b3 {[%emt 0:02:54]} 36. axb3 {[%emt 0:04:17]} axb3 {[%emt 0:00:13]} 37. Rd4 {[%emt 0:02:55]} Qb4 {[%emt 0:01:39]} 38. Qb2 {[%emt 0:02:10]} Qb5 {[%emt 0:00:20]} 39. Qc3 {[%emt 0:02:08]} h6 {[%emt 0:01:04]} 40. Rcd1 {[%emt 0:01:47]} Rd7 {[%emt 0:02:06]} 41. e5 {[%emt 0:38:22]} Rcd8 {[%emt 0:05:26]} 42. Qxc4 {[%emt 0:00:00]} Qxc4 {[%emt 0:00:58]} 43. Rxc4 {[%emt 0:00:00]} Rxd5 {[%emt 0:00:05]} 44. Rxd5 {[%emt 0:00:00]} Rxd5 {[%emt 0:00:06]} 45. Rc8+ {[%emt 0:00:00]} Kh7 {[%emt 0:00:05]} 46. Rb8 {[%emt 0:00:00]} Rd3 {[%emt 0:03:18]} 47. Rb6 {[%emt 0:00:00]} g5 {[%emt 0:01:27]} 48. h3 {[%emt 0:00:00]} h5 {[%emt 0:03:10]} 49. e6 {[%emt 0:00:00]} fxe6 {[%emt 0:00:35]} 50. Rxe6 {[%emt 0:00:00]} Rd1 {[%emt 0:09:27]} 51. Rb6 {[%emt 0:00:00]} Rb1 {[%emt 0:00:33]} 52. Kf3 {[%emt 0:00:00]} b2 {[%emt 0:01:13]} 53. h4 {[%emt 0:00:00]} gxh4 {[%emt 0:00:59]} 54. gxh4 {[%emt 0:00:00]} Kg7 {[%emt 0:00:45]} 55. Kf4 {[%emt 0:00:00]} Kf7 {[%emt 0:00:47]} 56. Kf5 {[%emt 0:00:00]} Kg7 {[%emt 0:02:02]} 57. f4 {[%emt 0:00:00]} Rh1 {[%emt 0:00:04]} 58. Rxb2 {[%emt 0:00:00]} Rxh4 {[%emt 0:00:07]} 59. Rb7+ {[%emt 0:00:00]} Kh6 {[%emt 0:00:17]} 60. Ke5 {[%emt 0:00:00]} Rh1 {[%emt 0:00:46]} 61. f5 {[%emt 0:01:16]} Re1+ {[%emt 0:01:40]} 62. Kf6 {[%emt 0:00:33]} Ra1 {[%emt 0:00:03]} 63. Kf7 {[%emt 0:02:35]} h4 {[%emt 0:01:20]} 64. f6 {[%emt 0:03:40]} h3 {[%emt 0:00:34]} 65. Rb3 {[%emt 0:00:15]} Ra7+ {[%emt 0:00:06]} 66. Ke6 {[%emt 0:00:15]} Ra6+ {[%emt 0:00:05]} 67. Kf5 {[%emt 0:00:48]} Ra5+ {[%emt 0:00:07]} 68. Kg4 {[%emt 0:00:20]} Kg6 {[%emt 0:00:24]} 69. Rxh3 {[%emt 0:00:57]} Ra4+ {[%emt 0:00:08]} 70. Kg3 {[%emt 0:00:05]} Ra3+ {[%emt 0:00:04]} 71. Kg2 {[%emt 0:00:07]} Rxh3 {[%emt 0:00:04]} 72. Kxh3 {[%emt 0:00:05]} Kxf6 {[%emt 0:00:04]} 1/2-1/2

[Event "121st Swiss Championship 2022"]
[Site "Samnaun-Compatsch"]
[Date "2022.07.10"]
[Round "9.8"]
[White "Hakimifard, Ghazal"]
[Black "Salzgeber, Frank"]
[Result "1-0"]
[ECO "C65"]
[WhiteElo "2296"]
[BlackElo "2131"]
[Annotator "RC"]
[PlyCount "147"]
[EventDate "2022.06.28"]
[EventType "swiss"]
[EventCountry "SUI"]
[SourceTitle "playchess.com"]
[Source "ChessBase"]
[SourceQuality "1"]
[TimeControl "40/5400+30:1800+30"]

1. e4 {[%emt 0:00:03]} e5 {[%emt 0:00:06]} 2. Nf3 {[%emt 0:00:03]} Nc6 {[%emt 0:00:08]} 3. Bb5 {[%emt 0:00:07]} Nf6 {[%emt 0:00:34]} 4. d3 {[%emt 0:00:08]} Bc5 {[%emt 0:01:06]} 5. O-O {[%emt 0:00:28]} Nd4 {[%emt 0:00:30]} 6. Nxd4 {[%emt 0:00:30]} Bxd4 {[%emt 0:00:30]} 7. c3 {[%emt 0:00:30]} Bb6 {[%emt 0:00:30]} 8. d4 {[%emt 0:07:39]} O-O {[%emt 0:05:16]} 9. Bd3 {[%emt 0:16:34]} d6 {[%emt 0:01:14]} 10. a4 {[%emt 0:01:48]} a6 {[%emt 0:01:14]} 11. a5 {[%emt 0:01:17]} Ba7 {[%emt 0:00:06]} 12. Bc2 {[%emt 0:01:21]} Re8 {[%emt 0:06:51]} 13. Re1 {[%emt 0:01:31]} Nd7 {[%emt 0:16:02]} 14. Be3 {[%emt 0:03:43]} Nf8 {[%emt 0:16:17]} 15. Nd2 {[%emt 0:02:14]} Ng6 {[%emt 0:02:29]} 16. Nf1 {[%emt 0:03:54]} Qf6 {[%emt 0:05:31]} 17. Qd2 {[%emt 0:06:10]} h6 {[%emt 0:03:37]} 18. Ng3 {[%emt 0:03:00]} Nh4 {[%emt 0:01:38]} 19. dxe5 {[%emt 0:06:19]} dxe5 {[%emt 0:01:03]} 20. Bxa7 {[%emt 0:01:01]} Rxa7 {[%emt 0:00:01]} 21. Qe3 {[%emt 0:00:22]} Ra8 {[%emt 0:00:35]} 22. Bb3 {[%emt 0:01:47]} Be6 {[%emt 0:02:22]} 23. Bd5 {[%emt 0:01:03]} c6 {[%emt 0:01:07]} 24. Bxe6 {[%emt 0:00:54]} Qxe6 {[%emt 0:00:41]} 25. Qb6 {[%emt 0:01:08]} Re7 {[%emt 0:00:52]} 26. Red1 {[%emt 0:10:59]} Rd7 {[%emt 0:01:05]} 27. h3 {[%emt 0:00:59]} Re8 {[%emt 0:04:05]} 28. Kh2 {[%emt 0:02:49]} Ree7 {[%emt 0:02:13]} 29. Qc5 {[%emt 0:04:03]} f6 {[%emt 0:05:11]} 30. b4 {[%emt 0:05:06]} Rxd1 {[%emt 0:00:40]} 31. Rxd1 {[%emt 0:00:01]} Rd7 {[%emt 0:01:41]} 32. Rxd7 {[%emt 0:01:03]} Qxd7 {[%emt 0:00:01]} 33. Qc4+ {[%emt 0:00:36]} Kh7 {[%emt 0:01:56]} 34. Nh5 {[%emt 0:01:41]} Ng6 {[%emt 0:01:39]} 35. Ng3 {[%emt 0:06:54]} Nf4 {[%emt 0:02:06]} 36. Nf5 {[%emt 0:00:19]} Ne6 {[%emt 0:01:17]} 37. Ne3 {[%emt 0:01:45]} g6 {[%emt 0:04:03]} 38. Qa2 {[%emt 0:03:58]} Kg7 {[%emt 0:00:41]} 39. Qe2 {[%emt 0:03:41]} h5 {[%emt 0:00:55]} 40. Nc4 {[%emt 0:01:14]} Nf4 {[%emt 0:07:35]} 41. Qe3 {[%emt 0:03:16]} h4 {[%emt 0:07:08]} 42. Qc5 {[%emt 0:02:44]} Ne6 {[%emt 0:09:24]} 43. Qd6 {[%emt 0:02:28]} Qe8 {[%emt 0:00:57]} 44. Ne3 {[%emt 0:06:16]} Kf7 {[%emt 0:02:19]} 45. Ng4 {[%emt 0:01:08]} Kg7 {[%emt 0:01:29]} 46. g3 {[%emt 0:00:37]} hxg3+ {[%emt 0:01:00]} 47. fxg3 {[%emt 0:00:01]} Qf7 {[%emt 0:00:22]} 48. h4 {[%emt 0:01:20]} g5 {[%emt 0:05:39]} 49. Ne3 {[%emt 0:00:17]} Kg6 {[%emt 0:01:49]} 50. Nf5 {[%emt 0:01:14]} gxh4 {[%emt 0:06:04]} 51. Nxh4+ {[%emt 0:00:21]} Kh7 {[%emt 0:00:16]} 52. Nf3 {[%emt 0:04:17]} Kg6 {[%emt 0:02:19]} 53. Kg2 {[%emt 0:00:17]} Kg7 {[%emt 0:01:39]} 54. c4 {[%emt 0:01:03]} Kh7 {[%emt 0:00:22]} 55. c5 {[%emt 0:03:41]} Kg7 {[%emt 0:00:13]} 56. Kf2 {[%emt 0:01:23]} Kh7 {[%emt 0:00:11]} 57. Ke3 {[%emt 0:00:14]} Kg7 {[%emt 0:00:33]} 58. Kd2 {[%emt 0:01:39]} Kh7 {[%emt 0:00:16]} 59. Kc1 {[%emt 0:02:32]} Kg7 {[%emt 0:00:07]} 60. Kb2 {[%emt 0:00:16]} Kh7 {[%emt 0:01:19]} 61. g4 {[%emt 0:01:48]} Ng7 {[%emt 0:00:44]} 62. g5 {[%emt 0:00:22]} Qc4 {[%emt 0:00:28]} 63. Qxf6 {[%emt 0:02:01]} Qxb4+ {[%emt 0:00:10]} 64. Kc2 {[%emt 0:00:07]} Qxc5+ {[%emt 0:00:15]} 65. Kd1 {[%emt 0:00:10]} Qa3 {[%emt 0:01:23]} 66. g6+ {[%emt 0:00:56]} Kg8 {[%emt 0:00:01]} 67. Qf7+ {[%emt 0:01:06]} Kh8 {[%emt 0:00:02]} 68. Nxe5 {[%emt 0:00:19]} Qa4+ {[%emt 0:00:49]} 69. Kc1 {[%emt 0:00:40]} Qa1+ {[%emt 0:00:31]} 70. Kc2 {[%emt 0:00:02]} Qa4+ {[%emt 0:00:52]} 71. Kd3 {[%emt 0:00:24]} Qa3+ {[%emt 0:00:17]} 72. Ke2 {[%emt 0:00:18]} Qd6 {[%emt 0:01:10]} 73. Qf3 {[%emt 0:01:25]} Qe7 {[%emt 0:00:50]} 74. Qh3+ {[%emt 0:00:12]} 1-0

[Event "121st Swiss Championship 2022"]
[Site "Samnaun-Compatsch"]
[Date "2022.07.10"]
[Round "9.9"]
[White "Sedina, Yelena"]
[Black "Wyss, Jonas"]
[Result "0-1"]
[ECO "C02"]
[WhiteElo "2215"]
[BlackElo "2223"]
[Annotator "RC"]
[PlyCount "236"]
[EventDate "2022.06.28"]
[EventType "swiss"]
[EventCountry "SUI"]
[SourceTitle "playchess.com"]
[Source "ChessBase"]
[SourceQuality "1"]
[TimeControl "40/5400+30:1800+30"]

1. e4 {[%emt 0:00:09]} e6 {[%emt 0:00:07]} 2. d4 {[%emt 0:00:08]} d5 {[%emt 0:00:04]} 3. e5 {[%emt 0:00:26]} c5 {[%emt 0:00:07]} 4. c3 {[%emt 0:00:06]} Qb6 {[%emt 0:00:05]} 5. Nf3 {[%emt 0:00:15]} Nc6 {[%emt 0:00:06]} 6. a3 {[%emt 0:03:21]} Nh6 {[%emt 0:00:45]} 7. Bd3 {[%emt 0:04:55]} cxd4 {[%emt 0:00:45]} 8. cxd4 {[%emt 0:00:06]} Bd7 {[%emt 0:00:08]} 9. Bc2 {[%emt 0:00:23]} g5 {[%emt 0:01:38]} 10. h3 {[%emt 0:06:39]} Nf5 {[%emt 0:00:20]} 11. Bxf5 {[%emt 0:51:57]} exf5 {[%emt 0:00:08]} 12. Bxg5 {[%emt 0:04:03]} Qxb2 {[%emt 0:00:32]} 13. Nbd2 {[%emt 0:00:08]} Qb5 {[%emt 0:00:13]} 14. a4 {[%emt 0:12:20]} Qa6 {[%emt 0:01:12]} 15. Qe2 {[%emt 0:00:08]} Qxe2+ {[%emt 0:00:44]} 16. Kxe2 {[%emt 0:01:57]} Rg8 {[%emt 0:00:08]} 17. Nb1 {[%emt 0:07:26]} Nxd4+ {[%emt 0:07:47]} 18. Nxd4 {[%emt 0:00:03]} Rxg5 {[%emt 0:00:11]} 19. Nc3 {[%emt 0:00:01]} Rxg2 {[%emt 0:09:35]} 20. Nxd5 {[%emt 0:02:03]} O-O-O {[%emt 0:06:44]} 21. Nf6 {[%emt 0:03:08]} Bc5 {[%emt 0:14:57]} 22. Rhc1 {[%emt 0:00:52]} b6 {[%emt 0:00:45]} 23. Kf3 {[%emt 0:00:35]} Rg6 {[%emt 0:05:10]} 24. Nxd7 {[%emt 0:00:23]} Rxd7 {[%emt 0:08:05]} 25. Nxf5 {[%emt 0:00:20]} Re6 {[%emt 0:00:59]} 26. Ke4 {[%emt 0:00:58]} f6 {[%emt 0:04:22]} 27. f4 {[%emt 0:00:04]} fxe5 {[%emt 0:00:07]} 28. fxe5 {[%emt 0:00:02]} Rd2 {[%emt 0:00:16]} 29. Re1 {[%emt 0:00:43]} Bf2 {[%emt 0:02:27]} 30. Rac1+ {[%emt 0:00:07]} Kb8 {[%emt 0:00:29]} 31. Red1 {[%emt 0:00:50]} Re2+ {[%emt 0:03:11]} 32. Kf3 {[%emt 0:00:45]} R6xe5 {[%emt 0:02:52]} 33. Rd8+ {[%emt 0:01:00]} Kb7 {[%emt 0:00:05]} 34. Rd7+ {[%emt 0:00:23]} Ka6 {[%emt 0:00:04]} 35. Rcc7 {[%emt 0:00:28]} Ka5 {[%emt 0:00:05]} 36. Rxa7+ {[%emt 0:00:11]} Kb4 {[%emt 0:00:04]} 37. Rxh7 {[%emt 0:00:32]} Bc5 {[%emt 0:02:54]} 38. Rhf7 {[%emt 0:00:56]} Rf2+ {[%emt 0:04:31]} 39. Kg4 {[%emt 0:00:07]} Re4+ {[%emt 0:00:21]} 40. Kg5 {[%emt 0:00:32]} Rg2+ {[%emt 0:01:26]} 41. Kf6 {[%emt 0:30:50]} Kb3 {[%emt 0:36:52]} 42. a5 {[%emt 0:00:00]} Bb4 {[%emt 0:00:00]} 43. Rfb7 {[%emt 0:00:00]} Bc3+ {[%emt 0:00:00]} 44. Kf7 {[%emt 0:00:00]} Rf4 {[%emt 0:00:00]} 45. Rxb6+ {[%emt 0:00:00]} Ka4 {[%emt 0:00:00]} 46. Ke6 {[%emt 0:00:00]} Re2+ {[%emt 0:00:00]} 47. Kd5 {[%emt 0:00:00]} Re5+ {[%emt 0:00:00]} 48. Kc6 {[%emt 0:00:00]} Rfxf5 {[%emt 0:00:00]} 49. Rd7 {[%emt 0:00:00]} Rxa5 {[%emt 0:00:00]} 50. Kb7 {[%emt 0:00:00]} Rae5 {[%emt 0:00:00]} 51. Ra6+ {[%emt 0:00:49]} Ba5 {[%emt 0:00:00]} 52. Rc6 {[%emt 0:00:53]} Kb5 {[%emt 0:00:00]} 53. Rcd6 {[%emt 0:00:54]} Rh5 {[%emt 0:00:06]} 54. Rd1 {[%emt 0:00:55]} Bb4 {[%emt 0:02:05]} 55. R1d3 {[%emt 0:02:36]} Bc5 {[%emt 0:01:13]} 56. Rb3+ {[%emt 0:00:54]} Kc4 {[%emt 0:00:17]} 57. Rb1 {[%emt 0:00:42]} Re6 {[%emt 0:04:40]} 58. Rc7 {[%emt 0:00:10]} Rg6 {[%emt 0:01:35]} 59. Rc6 {[%emt 0:00:51]} Rg7+ {[%emt 0:01:38]} 60. Rc7 {[%emt 0:00:02]} Rg2 {[%emt 0:00:45]} 61. Rc1+ {[%emt 0:00:23]} Kb5 {[%emt 0:00:15]} 62. Rb1+ {[%emt 0:00:53]} Bb4 {[%emt 0:00:08]} 63. Rbc1 {[%emt 0:00:22]} Rb2 {[%emt 0:02:05]} 64. Kc8 {[%emt 0:00:56]} Bc5 {[%emt 0:02:09]} 65. Ra1 {[%emt 0:00:44]} Bb6 {[%emt 0:00:35]} 66. Rf7 {[%emt 0:00:15]} Rc5+ {[%emt 0:01:49]} 67. Kb7 {[%emt 0:00:33]} Ba5 {[%emt 0:01:01]} 68. Ka7 {[%emt 0:00:19]} Bc7 {[%emt 0:06:56]} 69. h4 {[%emt 0:00:39]} Rb4 {[%emt 0:00:58]} 70. h5 {[%emt 0:00:19]} Bb6+ {[%emt 0:00:12]} 71. Kb7 {[%emt 0:00:30]} Rxh5 {[%emt 0:00:10]} 72. Ra6 {[%emt 0:00:53]} Bc5 {[%emt 0:01:13]} 73. Raf6 {[%emt 0:00:26]} Ra4 {[%emt 0:00:33]} 74. Kc8 {[%emt 0:00:40]} Ra8+ {[%emt 0:01:04]} 75. Kd7 {[%emt 0:00:14]} Ra7+ {[%emt 0:00:16]} 76. Ke6 {[%emt 0:00:37]} Ra6+ {[%emt 0:00:06]} 77. Kd7 {[%emt 0:00:04]} Rd5+ {[%emt 0:00:22]} 78. Kc8 {[%emt 0:00:35]} Bb6 {[%emt 0:03:54]} 79. Rf5 {[%emt 0:00:18]} Ra8+ {[%emt 0:01:24]} 80. Kb7 {[%emt 0:00:01]} Ra7+ {[%emt 0:00:07]} 81. Kc8 {[%emt 0:00:31]} Ra8+ {[%emt 0:01:08]} 82. Kb7 {[%emt 0:00:03]} Ra7+ {[%emt 0:00:03]} 83. Kc8 {[%emt 0:00:05]} Rxf5 {[%emt 0:00:26]} 84. Rxf5+ {[%emt 0:00:05]} Bc5 {[%emt 0:00:15]} 85. Rf6 {[%emt 0:02:51]} Bd4 {[%emt 0:01:24]} 86. Rg6 {[%emt 0:00:19]} Be5 {[%emt 0:00:23]} 87. Kd8 {[%emt 0:00:30]} Kc5 {[%emt 0:00:16]} 88. Ke8 {[%emt 0:00:46]} Bd6 {[%emt 0:00:27]} 89. Re6 {[%emt 0:00:31]} Kc6 {[%emt 0:00:18]} 90. Rh6 {[%emt 0:00:22]} Re7+ {[%emt 0:00:16]} 91. Kd8 {[%emt 0:00:18]} Rf7 {[%emt 0:00:09]} 92. Re6 {[%emt 0:00:05]} Kd5 {[%emt 0:01:43]} 93. Re1 {[%emt 0:00:09]} Bb4 {[%emt 0:00:23]} 94. Re2 {[%emt 0:00:57]} Bc3 {[%emt 0:00:29]} 95. Ke8 {[%emt 0:00:19]} Rf4 {[%emt 0:00:23]} 96. Re7 {[%emt 0:00:32]} Bb4 {[%emt 0:00:15]} 97. Rf7 {[%emt 0:00:31]} Re4+ {[%emt 0:00:11]} 98. Kd7 {[%emt 0:00:09]} Bd6 {[%emt 0:00:18]} 99. Rf5+ {[%emt 0:00:52]} Be5 {[%emt 0:00:04]} 100. Rf1 {[%emt 0:00:08]} Ra4 {[%emt 0:00:25]} 101. Rd1+ {[%emt 0:00:12]} Bd4 {[%emt 0:00:05]} 102. Ke7 {[%emt 0:00:52]} Ra7+ {[%emt 0:00:07]} 103. Kf8 {[%emt 0:00:14]} Ke5 {[%emt 0:00:14]} 104. Kg8 {[%emt 0:01:03]} Ba1 {[%emt 0:00:45]} 105. Rf1 {[%emt 0:00:14]} Ke6 {[%emt 0:00:12]} 106. Rf7 {[%emt 0:01:15]} Ra2 {[%emt 0:00:47]} 107. Rb7 {[%emt 0:00:30]} Be5 {[%emt 0:00:21]} 108. Kh7 {[%emt 0:00:43]} Rh2+ {[%emt 0:00:26]} 109. Kg6 {[%emt 0:00:05]} Rg2+ {[%emt 0:00:04]} 110. Kh7 {[%emt 0:00:28]} Bf6 {[%emt 0:01:21]} 111. Ra7 {[%emt 0:00:51]} Be7 {[%emt 0:00:15]} 112. Kh6 {[%emt 0:00:26]} Bf6 {[%emt 0:01:34]} 113. Ra6+ {[%emt 0:00:40]} Kf5 {[%emt 0:00:07]} 114. Ra5+ {[%emt 0:00:26]} Be5 {[%emt 0:00:05]} 115. Kh7 {[%emt 0:00:07]} Rg7+ {[%emt 0:00:17]} 116. Kh6 {[%emt 0:00:02]} Rd7 {[%emt 0:00:14]} 117. Rb5 {[%emt 0:00:25]} Rd1 {[%emt 0:00:16]} 118. Kh7 {[%emt 0:00:22]} Rd8 {[%emt 0:00:04]} 0-1

[Event "121st Swiss Championship 2022"]
[Site "Samnaun-Compatsch"]
[Date "2022.07.10"]
[Round "9.11"]
[White "Collin, Moritz Valentin"]
[Black "Kostina, Veronika"]
[Result "0-1"]
[ECO "A40"]
[WhiteElo "2129"]
[BlackElo "1883"]
[Annotator "RC"]
[PlyCount "110"]
[EventDate "2022.06.28"]
[EventType "swiss"]
[EventCountry "SUI"]
[SourceTitle "playchess.com"]
[Source "ChessBase"]
[SourceQuality "1"]
[TimeControl "40/5400+30:1800+30"]

1. d4 {[%emt 0:00:03]} e6 {[%emt 0:00:08]} 2. c4 {[%emt 0:00:05]} b6 {[%emt 0:00:15]} 3. a3 {[%emt 0:00:06]} c5 {[%emt 0:00:34]} 4. d5 {[%emt 0:01:29]} exd5 {[%emt 0:00:29]} 5. cxd5 {[%emt 0:00:07]} d6 {[%emt 0:00:12]} 6. e4 {[%emt 0:01:12]} g6 {[%emt 0:04:34]} 7. Nc3 {[%emt 0:02:43]} Bg7 {[%emt 0:02:31]} 8. Nf3 {[%emt 0:04:07]} Nf6 {[%emt 0:05:38]} 9. Nd2 {[%emt 0:10:40]} O-O {[%emt 0:02:52]} 10. Be2 {[%emt 0:01:51]} Re8 {[%emt 0:02:50]} 11. O-O {[%emt 0:00:24]} a6 {[%emt 0:04:04]} 12. a4 {[%emt 0:05:19]} Ra7 {[%emt 0:07:43]} 13. f4 {[%emt 0:08:59]} Rae7 {[%emt 0:04:16]} 14. Bf3 {[%emt 0:03:35]} b5 {[%emt 0:05:04]} 15. axb5 {[%emt 0:08:59]} axb5 {[%emt 0:01:25]} 16. Nxb5 {[%emt 0:02:52]} Ba6 {[%emt 0:04:22]} 17. Rxa6 {[%emt 0:13:10]} Nxa6 {[%emt 0:00:58]} 18. Nc4 {[%emt 0:06:53]} Nxe4 {[%emt 0:10:05]} 19. Bxe4 {[%emt 0:02:08]} Rxe4 {[%emt 0:00:35]} 20. Nbxd6 {[%emt 0:01:20]} Rxc4 {[%emt 0:04:08]} 21. Nxc4 {[%emt 0:02:07]} Bd4+ {[%emt 0:01:39]} 22. Kh1 {[%emt 0:01:09]} Qxd5 {[%emt 0:01:40]} 23. b3 {[%emt 0:04:05]} Nb4 {[%emt 0:02:56]} 24. h3 {[%emt 0:03:08]} f5 {[%emt 0:07:29]} 25. Bb2 {[%emt 0:04:42]} Bxb2 {[%emt 0:06:32]} 26. Nxb2 {[%emt 0:02:41]} Re3 {[%emt 0:05:10]} 27. Qxd5+ {[%emt 0:02:50]} Nxd5 {[%emt 0:00:48]} 28. Na4 {[%emt 0:01:21]} Rxb3 {[%emt 0:00:54]} 29. Nxc5 {[%emt 0:00:12]} Rc3 {[%emt 0:02:27]} 30. Ne6 {[%emt 0:03:43]} Kf7 {[%emt 0:03:10]} 31. Ng5+ {[%emt 0:01:31]} Kg7 {[%emt 0:00:52]} 32. h4 {[%emt 0:00:45]} h6 {[%emt 0:05:54]} 33. Nh3 {[%emt 0:00:50]} Rc2 {[%emt 0:01:27]} 34. Re1 {[%emt 0:00:54]} Kf7 {[%emt 0:01:30]} 35. Kh2 {[%emt 0:00:40]} Nf6 {[%emt 0:00:55]} 36. Ng1 {[%emt 0:01:02]} Rc4 {[%emt 0:01:37]} 37. Rf1 {[%emt 0:00:32]} Nh5 {[%emt 0:00:35]} 38. Ne2 {[%emt 0:00:18]} Re4 {[%emt 0:00:25]} 39. Rf2 {[%emt 0:00:20]} Nf6 {[%emt 0:00:37]} 40. g3 {[%emt 0:00:49]} Ng4+ {[%emt 0:00:14]} 41. Kg2 {[%emt 0:30:07]} Nxf2 {[%emt 0:30:36]} 42. Kxf2 {[%emt 0:00:07]} Ke6 {[%emt 0:00:00]} 43. Ng1 {[%emt 0:00:00]} Kd5 {[%emt 0:00:00]} 44. Nf3 {[%emt 0:00:00]} Re6 {[%emt 0:00:00]} 45. Kf1 {[%emt 0:00:00]} Ke4 {[%emt 0:00:00]} 46. Ke2 {[%emt 0:00:00]} Ra6 {[%emt 0:00:00]} 47. Nd2+ {[%emt 0:00:00]} Kd5 {[%emt 0:00:00]} 48. Ke3 {[%emt 0:00:00]} Ra3+ {[%emt 0:00:00]} 49. Kf2 {[%emt 0:00:00]} Kd4 {[%emt 0:00:00]} 50. Nf3+ {[%emt 0:00:00]} Ke4 {[%emt 0:00:00]} 51. Ne5 {[%emt 0:00:00]} g5 {[%emt 0:00:00]} 52. hxg5 {[%emt 0:00:00]} hxg5 {[%emt 0:00:00]} 53. Ng6 {[%emt 0:00:00]} Ra2+ {[%emt 0:00:00]} 54. Kg1 {[%emt 0:00:00]} Kf3 {[%emt 0:00:00]} 55. fxg5 {[%emt 0:00:00]} Kxg3 {[%emt 0:00:00]} 0-1